Cogmind - Beta 16 --- EXPLORER MODE // 2026.01.02 @ 14:42:29 Player: K.K.Y. Result: Destroyed by YD-B70(R) with Subdweller Beam Cannon Performance ------------- Evolutions (0) 0 Regions Visited (3) 600 Robots Destroyed (34) 170 Value Destroyed (984) 984 Prototype IDs (18) 360 Alien Tech Used (0) 0 Bonus (-34) -34 TOTAL SCORE: 2080 Bonus ------- Friendly Fire -34 Cogmind --------- Core Integrity 0/250 Matter 217/300 Energy 160/180 System Corruption 0% Temperature Cool (9) Movement Core (500) Ox9 Location -10/Subcaves Parts ------- > --- POWER (1) -------- Meta Core > --- PROPULSION (2+1) - (None) > --- UTILITY (3+1) ---- Large Storage Unit Core Shielding Core Shielding > --- WEAPON (2+1) ----- Mace > --- INVENTORY (15) --- Light Nuclear Core Light Nuclear Core Improved Heat Sink Huge Storage Unit Structural Scanner Machine Analyzer Sensor Array Seismic Detector Gun Armor Grenade Launcher Dirty Datajack (20) Peak State ------------ > --- POWER ------------ Meta Core > --- PROPULSION ------- Light Treads Light Treads > --- UTILITY ---------- Large Storage Unit Core Shielding Makeshift Light Armor Plating > --- WEAPON ----------- Heavy Assault Rifle Battle Cannon > --- INVENTORY -------- Light Nuclear Core Light Nuclear Core Light Treads Improved Heat Sink Huge Storage Unit Structural Scanner Machine Analyzer Sensor Array Seismic Detector Core Shielding Gun Armor Light Cannon Grenade Launcher Dirty Datajack Mace [Rating: 28] Favorites ----------- Power Ion Engine Engine Ion Engine Power Core Meta Core Propulsion Light Treads Treads Light Treads Utility Core Shielding Storage Large Storage Unit Protection Core Shielding Weapon Heavy Assault Rifle Energy Gun Medium Laser Ballistic Gun Heavy Assault Rifle Ballistic Cannon Battle Cannon Special Weapon Mining Laser Impact Weapon Mace Build | -11 -10 -10 -10 ------- Run | Yrd Mat Min Sub Slots Evolved 1 | . 1 . . Power . | . . . . Propulsion . | . . . . Utility 1 | . 1 . . Weapon . | . . . . Parts Attached 26 | 7 6 5 8 Power 3 | 1 . 1 1 Engine 2 | 1 . 1 . Core 1 | . . . 1 Reactor . | . . . . Propulsion 4 | 2 . . 2 Treads 4 | 2 . . 2 Leg . | . . . . Wheel . | . . . . Hover . | . . . . Flight . | . . . . Utility 11 | 2 3 3 3 Device . | . . . . Storage 2 | . 2 . . Processor . | . . . . Hackware . | . . . . Protection 9 | 2 1 3 3 Artifact . | . . . . Weapon 8 | 2 3 1 2 Energy Gun 1 | 1 . . . Energy Cannon . | . . . . Ballistic Gun 3 | 1 2 . . Ballistic Cannon 2 | . . 1 1 Launcher . | . . . . Special Weapon 1 | . . . 1 Impact Weapon 1 | . 1 . . Slashing Weapon . | . . . . Piercing Weapon . | . . . . Special Melee Weapon . | . . . . Unidentified Prototypes . | . . . . Parts Lost 11 | . . 1 10 Power . | . . . . Propulsion 4 | . . . 4 Utility 3 | . . 1 2 Weapon 4 | . . . 4 Highest Loss Streak 4 | . . 1 4 To Critical Strikes . | . . . . Average Backups 12 | 2 7 13 14 Power 1 | . . 2 2 Propulsion 1 | . 1 1 1 Utility 6 | 1 3 6 7 Weapon 2 | . 1 3 2 Tool/Special . | . . . . Unused Backups 14 | . 2 1 11 Power 2 | . . . 2 Propulsion 2 | . 1 1 . Utility 8 | . 1 . 7 Weapon 1 | . . . 1 Tool/Special 1 | . . . 1 Average Slot Usage (%) 91 | . 92 99 84 Engine 9 | . 12 12 7 Core 1 | . . . 3 Treads 21 | . 22 25 19 Storage 10 | . 9 12 10 Protection 23 | . 24 24 22 Ballistic Gun 16 | . 23 20 9 Ballistic Cannon 4 | . . 4 6 Special Weapon 1 | . . . 3 Peak Build Rating 28 | 7 12 13 28 Average Rating 14 | 5 9 12 18 On Entrance 7 | . 7 12 12 Avg Prop Armor Cover (%) . | . . . . Naked Turns . | . . . . Heaviest Build 38 | 11 35 37 38 Greatest Support 40 | 40 40 40 40 Greatest Overweight (x) 1 | . 1 . 1 Average Overweight (x) . | . . . . Largest Inventory Capacity 15 | 5 15 15 15 Average Capacity 13 | 5 10 15 15 Most Carried 15 | 5 12 15 15 Average Carried 12 | 2 7 13 14 Final Capacity 15 | 5 15 15 15 Final Carried 15 | 4 12 15 11 Class Distribution -------------------- 100% | Hacker-Mutant Dominant Class ---------------- Hacker-Mutant | -10/Materials Hacker-Mutant | -10/Mines Hacker-Mutant | -10/Subcaves Resources | -11 -10 -10 -10 ----------- Run | Yrd Mat Min Sub Matter Collected 1119 | 288 229 94 508 Remotely . | . . . . Salvage Created 1157 | 118 425 119 495 Parts 88 | 6 33 8 41 Haulers Intercepted 1 | . 1 . . Recyclers Shooed . | . . . . Parts Field Recycled . | . . . . Retrieved Matter . | . . . . Parts Self-Destructed . | . . . . Prevented . | . . . . Parts Restored . | . . . . Kills | -11 -10 -10 -10 ------- Run | Yrd Mat Min Sub Combat Hostiles Destroyed 24 | . 6 2 16 Guns 18 | . 6 2 10 Cannons 5 | . . . 5 Classes Destroyed 11 | 2 6 1 2 Builder 2 | . 1 1 . Tunneler 1 | 1 . . . Hauler 1 | . 1 . . Recycler 2 | 1 1 . . Mechanic 1 | . 1 . . Watcher 3 | . 3 . . Swarmer 3 | . 2 . 1 Grunt 4 | . 4 . . Sentry 2 | . . 2 . Artisan 4 | . . . 4 Subdweller 15 | . . . 15 Best Kill Streak 5 | 2 5 2 3 Combat Bots Only 4 | . 4 2 3 Max Kills in Single Turn 2 | 1 2 1 1 Gunslinging 1 | . 1 . . Exploded . | . . . . Melee . | . . . . Uniques/NPCs Destroyed . | . . . . Combat | -11 -10 -10 -10 -------- Run | Yrd Mat Min Sub Hostile Shots Fired 164 | . 21 16 127 Missed 28 | . 4 3 21 Hits 136 | . 17 13 106 Projectile 136 | . 17 13 106 Critical Strikes 5 | . . 1 4 Actively Blocked 1 | . . . 1 Damage Taken 1897 | . 134 120 1643 Core 260 | . 11 23 226 Absorbed by Shields . | . . . . Redirected to Shielding 52 | . 2 3 47 Ignored by Resistances 1082 | . 87 74 921 Core Remaining (%) 100 | 100 . . . Volleys Fired 153 | 6 20 8 119 Largest 2 | 2 2 2 2 Hottest 123 | 70 46 46 123 Shots Fired 240 | 12 40 16 172 Gun 134 | 12 40 16 66 Cannon 73 | . . . 73 Launcher . | . . . . Special 33 | . . . 33 Kinetic 201 | 6 40 16 139 Thermal 39 | 6 . . 33 Explosive . | . . . . Electromagnetic . | . . . . Robot Hit Streak 44 | 11 23 20 44 Robot Miss Streak 2 | . 1 . 2 Penetration Max . | . . . . Secondary Targets 3 | . 2 1 . Max Gunslinging Chain 1 | . 1 1 . Shots Hit Robots 153 | 11 30 14 98 Core Hits 56 | 3 17 5 31 Critical Kills 1 | . . . 1 Critical Parts Destroyed 1 | . . . 1 Critical Strikes 5 | 2 . . 3 Burn 2 | 2 . . . Destroy 1 | . . . 1 Blast 1 | . . . 1 Smash 1 | . . . 1 Melee Attacks 7 | . . . 7 Impact 7 | . . . 7 Slashing . | . . . . Piercing . | . . . . Sneak Attacks . | . . . . Combat Hostiles . | . . . . Follow-up Attacks . | . . . . Damage Inflicted 2456 | 132 485 220 1619 Guns 1484 | 132 485 220 647 Cannons 753 | . . . 753 Explosions . | . . . . Melee 195 | . . . 195 Ramming . | . . . . Kinetic 2163 | 58 485 220 1400 Thermal 98 | 74 . . 24 Explosive . | . . . . Electromagnetic . | . . . . Impact 195 | . . . 195 Slashing . | . . . . Piercing . | . . . . Highest Corruption . | . . . . Average Corruption . | . . . . Corruption Purged . | . . . . Corruption Blocked . | . . . . Overload Shots . | . . . . Overflow Damage 12 | . . . 12 Projectiles . | . . . . Explosions . | . . . . Melee 12 | . . . 12 Knockbacks 8 | . . . 8 Impact . | . . . . Kinetic 8 | . . . 8 Secondary . | . . . . Self-Inflicted Damage . | . . . . Shots . | . . . . Rammed . | . . . . Targets Rammed . | . . . . Kicked . | . . . . Crushed . | . . . . Highest Temperature 159 | 18 53 30 159 Average Temperature 28 | 9 24 15 89 Received Heat Transfer 880 | . 117 72 691 Siege Activations . | . . . . Martial Activations . | . . . . Shielding Activations . | . . . . Robots Disrupted . | . . . . Combat Hostiles . | . . . . Robots Corrupted 1 | . . . 1 Combat Hostiles 1 | . . . 1 Parts Fried . | . . . . Impact Corruptions 2 | . . . 2 Robots Melted . | . . . . Combat Hostiles . | . . . . Parts Melted . | . . . . Heat Transferred 420 | 370 . . 50 Parts Sabotaged . | . . . . Parts Stolen . | . . . . Parts Stripped . | . . . . Power Chain Reactions . | . . . . Alert | -11 -10 -10 -10 ------- Run | Yrd Mat Min Sub Maximum Alert Level . | . . . . Low Security (%) 100 | 100 100 100 . Level 1 . | . . . . Level 2 . | . . . . Level 3 . | . . . . Level 4 . | . . . . Level 5 . | . . . . High Security . | . . . . Max Security . | . . . . Peak Influence 121 | 10 121 31 . Initial . | . . . . Average 5 | . 13 . . Influence Increases 286 | 10 210 46 20 Destroy 0b10 Robot/C 180 | . 120 40 20 Destroy 0b10 Robot/NC 50 | 10 35 5 . Destroy Leader 38 | . 38 . . Successful Hack 13 | . 13 . . Disable Machine 4 | . 4 . . Destroy Structure 1 | . . 1 . Influence Decreases 286 | 10 210 46 20 Time Decay 276 | 10 210 36 20 Lost Part 10 | . . 10 . Squads Dispatched . | . . . . Investigation . | . . . . Extermination . | . . . . Reinforcement . | . . . . Assault . | . . . . Garrison . | . . . . Intercept . | . . . . Searches Triggered . | . . . . Construction Impeded . | . . . . Haulers Reinforced . | . . . . Active Scanning Responses . | . . . . Cargo Convoy Interrupts . | . . . . Stealth | -11 -10 -10 -10 --------- Run | Yrd Mat Min Sub Distress Signals 2 | . 2 . . Communications Jammed . | . . . . Distress Signals . | . . . . Times Spotted 29 | . 9 2 18 Peak Tracking Total 3 | . 3 2 3 Tactical Retreats . | . . . . Traps | -11 -10 -10 -10 ------- Run | Yrd Mat Min Sub Traps Triggered 5 | . 3 . 2 Indirectly . | . . . . Trap Hack Attempts . | . . . . Triggered . | . . . . Disarmed . | . . . . Reprogrammed . | . . . . Reused . | . . . . Traps Extracted . | . . . . Installed . | . . . . Triggered . | . . . . Machines | -11 -10 -10 -10 ---------- Run | Yrd Mat Min Sub Machines Disabled 3 | . 1 . 2 Max in Single Turn 1 | . 1 . 1 Machines Repaired . | . . . . Machines Dismantled . | . . . . Machines Sabotaged . | . . . . Overloaded Fab Kills . | . . . . Hacking | -11 -10 -10 -10 --------- Run | Yrd Mat Min Sub Machines Accessed 8 | . 7 . 1 Terminals 7 | . 7 . . Fabricators . | . . . . Repair Stations . | . . . . Recycling Units . | . . . . Scanalyzers . | . . . . Garrison Access . | . . . . Total Hacks 24 | . 23 . 1 Successful 14 | . 13 . 1 Failed 10 | . 10 . . Catastrophic . | . . . . Database Lockouts . | . . . . Manual 21 | . 21 . . Terminals 23 | . 23 . . Fabricators . | . . . . Repair Stations . | . . . . Recycling Units . | . . . . Scanalyzers . | . . . . Garrison Access . | . . . . Terminal Hacks 8 | . 7 . 1 Prototype ID Bank 7 | . 7 . . Proto ID Catalog 1 | . . . 1 Fabricator Hacks . | . . . . Repair Station Hacks . | . . . . Recycling Unit Hacks . | . . . . Scanalyzer . | . . . . Garrison Access Hacks . | . . . . Unauthorized Hacks 6 | . 6 . . Terminals 6 | . 6 . . Botnet 6 | . 6 . . Fabricators . | . . . . Repair Stations . | . . . . Recycling Units . | . . . . Scanalyzers . | . . . . Garrison Access . | . . . . Data Cores Recovered . | . . . . Used . | . . . . Hacking Detections 7 | . 7 . . Full Trace Events 1 | . 1 . . Feedback Events . | . . . . Feedback Blocked . | . . . . Robot Schematics Acquired . | . . . . Robots Built . | . . . . Authchips . | . . . . Time . | . . . . Total Robot Build Rating . | . . . . Part Schematics Acquired . | . . . . Parts Built . | . . . . Authchips . | . . . . Time . | . . . . Total Part Build Rating . | . . . . Part Studies Acquired . | . . . . Parts Repaired . | . . . . Time . | . . . . Parts Recycled . | . . . . Recycled Matter . | . . . . Retrieved Matter . | . . . . Retrieved Components . | . . . . Parts Scanalyzed . | . . . . Part Schematics Acquired . | . . . . Parts Damaged . | . . . . Bothacking | -11 -10 -10 -10 ------------ Run | Yrd Mat Min Sub Used RIF Installer . | . . . . Robots Hacked . | . . . . Non-combat . | . . . . Combat . | . . . . Robot Hacks Applied . | . . . . Relay Couplers Released . | . . . . Fabnet Peak Effective % . | . . . . Robots Rewired . | . . . . Allies Hacked . | . . . . Hacks Repelled . | . . . . Allies | -11 -10 -10 -10 -------- Run | Yrd Mat Min Sub Total Allies . | . . . . Largest Group . | . . . . Highest-Rated Group . | . . . . Highest-Rated Ally . | . . . . Total Orders . | . . . . Ally Attacks . | . . . . Total Damage . | . . . . Kills . | . . . . Allies Corrupted . | . . . . Allies Melted . | . . . . Intel | -11 -10 -10 -10 ------- Run | Yrd Mat Min Sub Active Infowar (turns) . | . . . . Robot Analysis Total . | . . . . Derelict Logs Recovered 1 | . . . 1 Drone Launches . | . . . . Drone Recoveries . | . . . . Exploration | -11 -10 -10 -10 ------------- Run | Yrd Mat Min Sub Turns Passed 3955 | 130 885 1174 1766 Spaces Moved 1955 | 66 464 697 728 Core 9 | 9 . . . Treads 1946 | 57 464 697 728 Legs . | . . . . Wheels . | . . . . Hover . | . . . . Flight . | . . . . Fastest Speed 50 | 50 160 160 160 Average Speed 167 | 145 168 160 176 Slowest Speed 240 | 160 240 160 240 Overloaded Moves . | . . . . Propulsion Burnouts . | . . . . Robots Hopped . | . . . . Potential Cave-ins . | . . . . Cave-ins Triggered . | . . . . Exploration Rate (%) 62 | 5 85 93 67 Regions Visited 3 Branch Regions 2 Pre-discovered Areas 1 | . . . 1 Known Exits Taken 3 | 1 1 1 . Unknown Exits Taken . | . . . . Scrap Searched 5 | . . 3 2 Spaces Dug . | . . . . Terrain Destroyed 3 | . . . 3 Melee . | . . . . Projectile 3 | . . . 3 AOE . | . . . . Terrain Rammed . | . . . . Walls Destroyed . | . . . . Machines Disabled . | . . . . Actions | -11 -10 -10 -10 --------- Run | Yrd Mat Min Sub Total 2315 | 88 529 740 958 Wait 119 | . 13 17 89 Move 1952 | 65 463 696 728 Hop . | . . . . Pick Up 37 | 10 16 9 2 Fast Attach 4 | 1 2 . 1 Attach 19 | 6 6 1 6 Detach 1 | . 1 . . Swap 11 | . 3 4 4 Drop 12 | . 5 5 2 Fire 153 | 6 20 8 119 Melee 7 | . . . 7 Ram . | . . . . Kick . | . . . . Crush . | . . . . Escape Stasis . | . . . . Rewire . | . . . . Trap . | . . . . Miscellaneous . | . . . . Route ------- -11/Scrapyard -10/Materials (discovered 3 exits: *Mat x2 / *Min) -10/Mines (discovered 3 exits: *Mat x2 / *Sub) -10/Subcaves (discovered 2 exits: *Mat / [Scr]) History --------- Turn | Location | Event 7 | -11/Scrapyard | Identified exit to Materials 7 | -11/Scrapyard | Discovered exit to Materials (range 16) 131 | -11/Scrapyard | Entered Materials 131 | -10/Materials | Evolved 1 slot: Utility x1 312 | -10/Materials | Build established: Hacker-Mutant 448 | -10/Materials | Identified exit to Materials 448 | -10/Materials | Discovered exit to Materials (range 4) 631 | -10/Materials | Derelicts attacked the area 780 | -10/Materials | Discovered exit to Materials (range 6) 939 | -10/Materials | Identified exit to Mines 939 | -10/Materials | Discovered exit to Mines (range 16) 1016 | -10/Materials | Entered Mines 1018 | -10/Mines | Met a Derelict bent on vengeance 1144 | -10/Mines | Deemed a non-threat by the Exiles lab entrance 1668 | -10/Mines | Discovered exit to Materials (range 13) 2154 | -10/Mines | Discovered exit to Materials (range 5) 2183 | -10/Mines | Identified exit to Subcaves 2183 | -10/Mines | Discovered exit to Subcaves (range 5) 2190 | -10/Mines | Entered Subcaves 2191 | -10/Subcaves | Approached by a straggling Scientist 2199 | -10/Subcaves | Shifting Twisted Machinery released Sub. Machine Gun 2222 | -10/Subcaves | Shifting Twisted Machinery released Flamer 2268 | -10/Subcaves | Identified exit to Materials 2268 | -10/Subcaves | Discovered exit to Materials (range 5) 2635 | -10/Subcaves | A swath of the cavern ceiling suddenly collapsed 2970 | -10/Subcaves | A Subdweller sparked back to life 2970 | -10/Subcaves | A Subdweller sparked back to life 2970 | -10/Subcaves | A Subdweller sparked back to life 3000 | -10/Subcaves | Found Prototype Protection 3078 | -10/Subcaves | Disturbed a concealed Subdweller 3079 | -10/Subcaves | Core integrity fell below 50% 3230 | -10/Subcaves | Visited 4L-MR0's lab 3235 | -10/Subcaves | Identified Gun Armor 3245 | -10/Subcaves | Found Meta Core 3246 | -10/Subcaves | Attached Meta Core, gained temporary slots: Propulsion, Utility, Weapon 3346 | -10/Subcaves | Shifting Twisted Machinery released Sub. Laser 3413 | -10/Subcaves | Scientist uncovered a shortcut to Scraptown 3420 | -10/Subcaves | Learned location of Zion (-6) 3923 | -10/Subcaves | Core integrity fell below 20% 3956 | -10/Subcaves | Destroyed by YD-B70(R) with Subdweller Beam Cannon Last Messages --------------- 03829_ T4-EN8(R) destroyed. 03843_ Acquired 39 matter. 03869_ Acquired 3 matter. 03875_ BG-MPL(R): "ECOKILL!" 03879_ BG-MPL(R) destroyed. 03888_ Acquired 33 matter. 03914_ D1-I20(R) knocked back. 03915_ Critical hit (Meltdown: +160). 03916_ YD-B70(R) knocked back. 03919_ Battle Cannon destroyed. 03927_ YD-B70(R) knocked back. 03933_ Lgt. Cannon destroyed. 03946_ Lgt. Treads destroyed. 03953_ D1-I20(R) suffers critical hit (Smash). 03953_ Destroyed Sub. Beam Cannon. 03953_ Destroyed Scrap Shield. 03953_ D1-I20(R) system corrupted by crushing effect. 03954_ D1-I20(R) system terminally corrupted. 03954_ Mak. Light Armor Plating destroyed. Map ----- +----------------------------------------------------+ | ### # ??????????????? | | ##### ## ### ##??###?? ??????????????? | | ??? ????# ##?# # ##???????????????????????? | | ????????#####??## ##? #???????????????????????? | | ???????????????? #?? ##???????????????????????? | | ??????????????? # ?? #????????????????????????? | | ???????????????## ? ????????????????????????? | | ????????????????## ????????????????????????? | | ?????????????????? # ???????????????????????? | | ?????????????????? ####???????????????????????? | | ?????????????????? ###??????????????????????????? | | ?????????????????? ##????????????????????????????? | | ?????????????????? #?????????????????????????????? | | ??????????????????#??????????????????????????????? | | ????????????????????##???????????????????????????? | | ????????????????????# ???????????????????????????? | | ????????????????????? ??????????????????????????? | | ????????????????????? ??????????????????????????? | | ????????????????????#" ####??????????????????????? | | ????????????????????? ??????????????????????? | | ?????????????????????? ??????????????????????? | | ?????????????????????? #??????????????????????? | | ??????????????????????? % ##??##?????????????????? | | ????????????????????????"" ###"#?????????????????? | | ???????????????????????## % "#?????????????????? | | ???????????????????????#;@ R #?# ?????????????? | | ?????????????????????### % #? ?????????????? | | ?????????????????????#; * "### ?????????????? | | ????????????????????##; ##? ??????????????? | | ????????????????????#;; ;#?# #??##??? ????? | | ????????????????????#; ##?# ## """""" #???? | | ???????????????????##; ;;;;#### """"""" #???? | | ???????????????????#; ; ### """" """""????? | | ???????????????????## ##;#?# """"" " ?????? | | ???????????????????#; %### """ " ??????? | | ???????????????????## !%= " " #??????? | | ???????????????????# ! #??#""#??????? | | ???????????????????### #### ######??? | | ?????????????????????##### # # ## "##?? | | ?????????????????????????# ## "" #?? | | ????????????????????????## # "" #?? | | ???????????????????##???# ## # "" ### ### | | ????????# #??##????# #### % & ! ###" #??# | | ???????? ## ???# ## [% "# #### | | ???????? ??# ## ## ## # | | ?????????# #?# *## ### * | | ????????## ## ####### ### # #### | | ????????# ##?????# ##?######??# | | ????????## #??????## ##??????????# | | ?????? * #???????####???????????## | +----------------------------------------------------+ Best States ------------- Heat Dissipation 25 Energy Generation 17 Energy Capacity 265 Matter Stores 300 Matter Capacity 300 Sight Range 16 Terrain Scan Density 10 Armor Coverage 150 Resistance: KI 35 Resistance: TH 35 Resistance: EX 35 Resistance: EM 35 Resistance: I 35 Resistance: S 35 Resistance: P 35 Core Shielding 20 Evasion (%) 50 Recoil Reduction 2 Offensive Hacking 20 Item Schematics ----------------- None Robot Schematics ------------------ None Fabricated ------------ Nothing Repaired ---------- Nothing Studied --------- None Alien Tech Used ----------------- None Achievements -------------- None Challenges ------------ None Game ------ Seed HellfireTrackerMeganuke Manual? 0 Play Time 00:19:26 Cumulative 241.6 hours Start 2026.01.02 @ 14:00:36 End 2026.01.02 @ 14:42:29 Sessions 1 Manual Loads 0 Difficulty Explorer Special Mode None Game No. 382 Rogue 0 Adventurer 0 Explorer 382 Win Type - Total 0 Types 0/0/0/0/0/0/0/0/0/0 Lore% 71 Gallery% 69 Achievement% 54 Wizard Run 0 Options --------- Layout 1 ASCII 0 Keyboard 0 Movement Mouse Keybinds 0 Fullscreen 1 Font 24/Smallcaps Map View 50x35 Zoom Use 0% Tactical HUD 1 Map Filters NONE Filters NONE Steam 1 RUN: 15a978c5-3549-4f16-bff8-e752b14988ce